Workbook

Sheet INFORMATION (hidden)
A1: 2023 Cost of Service Additional Service Water Rates Sch TR-1.Z25.xlsm
A2: 01/03/2023
A3: CENTRAL VALLEY PROJECT
A4: SCHEDULE OF WATER RATES FOR ADDITIONAL CVP SERVICES WHEN TRANSFERRING
A5: CVP WATER TO CVP M&I WATER CONTRACTORS
A6: 2023 SPECIAL WATER RATES
C8: SOURCE DATA:
A35: 10/25/2022 | B35: rm | C35: Updated file names, title, headings, and dates
C36: ran macro
C37: Verified Net Contruction Costs in Sch TR-1, Output tab, and M & I Sch A-4, Output tabs
C38: Verified Net Contruction Costs in Sch TR-1, Output tab, and M & I Sch A-4, Output tabs
C39: Verified 7 year Average Water Deliveries in Sch TR-1, Output tab, and M & I Sch A-7, Output tab
C40: ready for review
A41: 10/31/2022 | B41: KJ | C41: Reviewed
A42: 01/03/23 | B42: KJ | C42: Updated with Final

Sheet MACRO_INPUT (hidden)
A1: =INFORMATION!A1 -> 2023 Cost of Service Additional Service Water Rates Sch TR-1.Z25.xlsm
A2: =INFORMATION!$A$2 -> 01/03/2023
A3: =OUTPUT!A4 -> CENTRAL VALLEY PROJECT
A4: =OUTPUT!A5 -> SCHEDULE OF WATER RATES FOR ADDITIONAL CVP SERVICES WHEN TRANSFERRING
A5: =OUTPUT!A6 -> CVP WATER TO CVP M&I WATER CONTRACTORS
A6: =OUTPUT!A7 -> 2023 SPECIAL WATER RATES
B7: RESERVED FOR MACRO INPUT
B14: M&I Schedule A-13
B15: Composite Construction Interest Rate | D15: 0.02375460811
B18: M&I Schedule A-7 | G18: M&I Schedule A-5 | J18: Total | K18: PUE BOR | L18: PUE DOE | N18: M&I Schedule A-4 | Q18: Misc. Revenue | R18: Other Cost
A20: Storage | G20: Storage 1/ | O20: San Felipe Unit Contractors | Q20: 809388.11
A21: Total | D21: 17731349.52 | H21: San Felipe Unit Contractors | J21: 10103901.89 | K21: 0 | L21: 0 | O21: All Other Contractors | Q21: 379393.76
H22: All Other Contractors | J22: 40454308.98 | K22: 548627.8606 | L22: 533375.2892 | O22: Total Storage | Q22: 1188781.87
A23: Conveyance | I23: Total Storage | J23: 50558210.87 | K23: 548627.8606 | L23: 533375.2892
A24: Total | D24: 9447904.429 | N24: Conveyance
G25: Conveyance | O25: Contra Costa Canal System | Q25: 0
A26: Conveyance Pumping | H26: Contra Costa WD 3/ | J26: 0 | O26: All Other Contractors | Q26: 288911.73
A27: Dos Amigos PP | D27: 647865.1228 | H27: All Other Contractors | J27: 26600102.02
I28: Total Conveyance | J28: 26600102.02
A29: O'Neill PP | D29: 4550366.143 | P29: Total Conveyance | Q29: 288911.73
G30: Conveyance Pumping
A31: Jones PP - Subtotal | D31: 4956444 | H31: Dos Amigos Pumping Plant | J31: 821360.684 | K31: 274432.2546 | L31: 266802.6793 | N31: Conveyance Pumping
A32: Jones PP - Total | D32: 7453128.902 | H32: O'Neill Pump-Generator Plant | J32: 3436478.792 | K32: 855429.1677 | L32: 831647.119 | O32: Dos Amigos PP | Q32: 4604.81
H33: Jones Pumping Plant | J33: 15108319.43 | K33: 5437365.598 | L33: 5286199.73 | Q33: 0
O34: O'Neill Pump-Generator Plant | Q34: 138321.73
B35: County of Colusa | D35: 1172.142857 | O35: Jones PP | Q35: 0
B36: Elk Creek CSD | D36: 499 | I36: Total Conveyance Pumping | J36: 19366158.9 | K36: 6567227.021 | L36: 6384649.528 | P36: FK/Madera Exchange | Q36: 0
B37: US Forest Service - BB | D37: 339.7142857 | P37: All Other Contractors | Q37: 18027.08
B38: Whitney Const. | D38: 807 | G38: Direct Pumping
C39: Total Black Butte D&R | D39: 2817.857143 | H39: Bella Vista WD (Wintu PP) | J39: 902585.8375 | K39: 206588.8639 | L39: 200845.4236 | P39: Total Conveyance Pumping | Q39: 160953.62
H40: Colusa County WD | J40: 36408.49257 | K40: 2142.483199 | L40: 2082.919367
H41: Contra Costa Pumping Plants | J41: 4974012.629 | K41: 2522064.661 | L41: 2451947.968 | N41: Direct Pumping
H42: Kanawha WD | J42: 1558.779776 | K42: 36.78117022 | L42: 35.75860563
B43: Clear Creek CSD | D43: 87953.28571 | H43: Pleasant Valley Canalside Relifts | J43: 49429.81448 | K43: 11922.70817 | L43: 11591.24131 | O43: Bella Vista WD (Wintu PP) | Q43: 60913.26
H44: Pleasant Valley Pumping Plant | J44: 206069.19 | K44: 152.3528045 | L44: 148.1171974 | O44: Colusa County WD Relift PP | Q44: 0
H45: San Benito County WD | O45: Contra Costa PP (Contra Costa WD) | Q45: 0
I46: Pacheco Pumping Plant | J46: 224076.6822 | K46: 113617.7014 | L46: 110458.9808 | O46: Kanawha WD Relift PP | Q46: 0
B47: Contra Costa WD | D47: 5074478.429 | I47: Gianelli, William R. Pump-Generator Plant 1/ | J47: 379445.3046 | K47: 171345.4409 | L47: 166581.8137 | O47: Pleasant Valley PP (City of Coalinga) | Q47: 3511.24
H48: San Luis WD Canalside Relifts & Turnouts | J48: 73891.36987 | K48: 37466.49368 | L48: 36424.87619 | O48: Pleasant Valley WD Canalside Relift PP | Q48: 0
H49: Santa Clara Valley WD | O49: San Benito County WD
I50: Coyote Pumping Plant | J50: 1356563.247 | K50: 687843.0917 | L50: 668720.1549 | P50: Pacheco PP | Q50: 0
B51: Bella Vista WD | D51: 176335.5714 | I51: Pacheco Pumping Plant | J51: 4713216.438 | K51: 2389828.395 | L51: 2323388.043 | P51: Gianelli, WR PGP | Q51: 15649.35
I52: Gianelli, William R. Pump-Generator Plant 1/ | J52: 7981221.612 | K52: 3604070.414 | L52: 3503872.547 | P52: Total San Benito County WD | Q52: 15649.35
H53: Shasta Pumping Plant | J53: 585576.7661 | K53: 137625.4568 | L53: 133799.2893
H54: State-Delta Pumping Plant (Cross Valley Canal) | J54: 15079.58 | K54: 7646.075442 | L54: 7433.504553 | O54: San Luis WD Canalside Relifts & Turnouts | Q54: 0
B55: County of Fresno | D55: 1782 | H55: Westlands WD Canalside Relift PP | J55: 787112.8242 | K55: 43459.06906 | L55: 42250.85015 | O55: Santa Clara Valley WD
B56: County of Tulare | D56: 6599 | I56: Total Direct Pumping | J56: 22286248.57 | K56: 9935809.989 | L56: 9659581.488 | P56: Coyote PP | Q56: 0
C57: Total Cross Valley Canal | D57: 8381 | P57: Pacheco PP | Q57: 0
P58: Gianelli, WR PGP | Q58: 115667.27
G59: Other Costs 4/ | J59: 7378781.395 | P59: Total Santa Clara WD | Q59: 115667.27
B61: Byron Bethany ID | D61: 31453.57143
B62: City of Tracy | D62: 359752.1429 | H62: Total | J62: 126189501.8 | K62: 17051664.87 | L62: 16577606.31 | O62: Shasta PP (City of Shasta Lake) | Q62: 16388.68
B63: Del Puerto WD | D63: 526 | O63: State Delta PP (Cross Valley Canal) | Q63: 0
B64: Department of Veterans Affairs | D64: 8089.285714 | O64: Westlands WD Relifts | Q64: 3501.54
B65: Panoche WD - DMC | D65: 1171.857143
B66: San Luis WD - DMC | D66: 5085 | P66: Total Direct Pumping | Q66: 215631.34
C67: Total Delta-Mendota Canal | D67: 406077.8571
P68: Sub-total | Q68: 1854278.56
N70: Other Costs
B71: City of Folsom | D71: 46284
B72: City of Roseville | D72: 1099189.143 | O72: Deferred Interest Capitalized | Q72: 0 | R72: 21277763
B73: El Dorado ID - FD&R | D73: 262795 | O73: Programmatic EIS Capitalized 2/ | Q73: 0 | R73: 1591067.959
B74: Placer County WA | D74: 30085 | O74: All others | Q74: 0 | R74: 7378781.395
B75: Sacramento County WA | D75: 106759.4286 | P75: Total Other Costs | Q75: 0
B76: San Juan WD | D76: 230052.4286
C77: Total Folsom D&R | D77: 1775165 | P77: Grand Total | Q77: 1854278.56
B81: East Bay MUD | D81: 890526.8571
B82: Sacramento County WA - FSC | D82: 52745
B83: Sacramento MUD | D83: 638341
C84: Total Folsom-South Canal | D84: 1581612.857
B88: County of Madera | D88: 3762.142857
B89: Fresno County WW #18 | D89: 5852.142857
C90: Total Friant Dam | D90: 9614.285714
B94: Arvin-Edison WSD | D94: 29103.85714
B95: City of Fresno | D95: 2293460.714
B96: City of Lindsay | D96: 83998
B97: City of Orange Cove | D97: 54205.71429
B98: Delano-Earlimart ID | D98: 7437.428571
B99: Lindsay-Strathmore ID | D99: 16356.14286
B100: Shafter-Wasco ID | D100: 12503.71429
B101: Terra Bella ID | D101: 42057.28571
C102: Total Friant-Kern Canal | D102: 2539122.857
B106: Stockton-East WD | D106: 710589.2857
B110: City of Redding - SR | D110: 160892
B111: City of W. Sacramento | D111: 265659.7143
B112: Lake California P.O.A. | D112: 9212.428571
B113: Riverview Golf & CC | D113: 1243.142857
C114: Total Sacramento River | D114: 437007.2857
B118: San Benito County WD | D118: 175965.2857
B119: Santa Clara Valley WD | D119: 3701244
C120: Total San Felipe Unit | D120: 3877209.286
B124: City of Avenal | D124: 108133.1429
B125: City of Coalinga | D125: 276102.5714
B126: City of Huron | D126: 50083.85714
B127: State of CA | D127: 269.7142857
B128: Westlands WD | D128: 199434
C129: Total SLC - Fresno | D129: 634023.2857
B133: Pacheco WD | D133: 565
B134: Panoche WD | D134: 3398.142857
B135: San Luis WD 2/ | D135: 35170.42857
C136: Total SLC - Tracy | D136: 39133.57143
B140: Centerville CSD | D140: 33309.31971
B141: Mountain Gate CSD | D141: 29673.57143
B142: Shasta CWA | D142: 7545.200292
C143: Total Shasta D&R | D143: 70528.09143
B147: City of Redding - SCC | D147: 164439.5714
B148: Shasta CWA - SCC | D148: 5885.285714
B149: Shasta CSD | D149: 24539
C150: Total Spring Creek Conduit | D150: 194863.8571
B154: Colusa County WD | D154: 5072.571429
B155: Kanawha WD | D155: 488.7142857
C156: Total Tehama-Colusa Canal | D156: 5561.285714
B160: City of Redding - TP | D160: 5253.857143
B161: City of Shasta Lake | D161: 95326.71429
B162: US Forest Service | D162: 294
C163: Total Toyon Pipeline | D163: 100874.5714
C165: CVP Sub-Total (A/F) | D165: 17731349.52
J280: 12722029.91 | Q280: 0
J281: 222557931.2 | Q281: 893712
J284: 423787724.3 | K284: 0 | N284: 0 | Q284: 16149711.24

Sheet OUTPUT
A2: =INFORMATION!A1 -> 2023 Cost of Service Additional Service Water Rates Sch TR-1.Z25.xlsm
A3: =+INFORMATION!A2 -> 01/03/2023
A4: =INFORMATION!A3 -> CENTRAL VALLEY PROJECT
A5: =INFORMATION!A4 -> SCHEDULE OF WATER RATES FOR ADDITIONAL CVP SERVICES WHEN TRANSFERRING
A6: =INFORMATION!A5 -> CVP WATER TO CVP M&I WATER CONTRACTORS
A7: =INFORMATION!A6 -> 2023 SPECIAL WATER RATES
A8: Category | B8: A) Component / Facility | C8: Related Footnotes | D8: B) Net Construction Costs at 9/30/2021 <M&I Sch A-4> | E8: C) Construction with Int. Annualized Costs @ 0.023755 | F8: D) 7 Year Average Water Deliveries <M&I Sch A-7 divided by 50> | G8: 7 Year Average Water Deliveries Footnotes | H8: E) Construction Cost per Acre-Foot (C/D) | K8: =MACRO_INPUT!D15 -> 0.02375460811
A9: Storage | B9: San Felipe Unit | C9: - | D9: =MACRO_INPUT!J21-MACRO_INPUT!Q20 -> 9294513.78 | E9: =(-PMT($K$8,50,D9,0,0)) -> 319600.5089 | F9: =MACRO_INPUT!D120/50 -> 77544.18571 | G9: - | H9: =ROUND(+E9/F9,2) -> 4.12
A10: Storage | B10: All Other Contractors | C10: - | D10: =MACRO_INPUT!J22-MACRO_INPUT!Q21 -> 40074915.22 | E10: =(-PMT($K$8,50,D10,0,0)) -> 1378013.267 | F10: =(MACRO_INPUT!D21-MACRO_INPUT!D120)/50 -> 277082.8047 | G10: - | H10: =ROUND(+E10/F10,2) -> 4.97
A11: Total | B11: Storage | C11: - | D11: =SUM(D9:D10) -> 49369429 | E11: =SUM(E9:E10) -> 1697613.776 | F11: - | G11: - | H11: -
A12: Conveyance | B12: Contra Costa Canal System | C12: 1/ | D12: 0 | E12: =(-PMT($K$8,50,D12,0,0)) -> 0 | F12: - | G12: - | H12: 0
A13: Conveyance | B13: All Other Contractors | C13: - | D13: =MACRO_INPUT!J27-MACRO_INPUT!Q26 -> 26311190.29 | E13: =(-PMT($K$8,50,D13,0,0)) -> 904734.7721 | F13: =MACRO_INPUT!D24/50 -> 188958.0886 | G13: - | H13: =ROUND(+E13/F13,2) -> 4.79
A14: Total | B14: Conveyance | C14: - | D14: =SUM(D12:D13) -> 26311190.29 | E14: =SUM(E12:E13) -> 904734.7721 | F14: - | G14: - | H14: -
A15: Conveyance Pumping | B15: Dos Amigos Pumping Plant, Construction only | C15: - | D15: =MACRO_INPUT!J31-MACRO_INPUT!Q32-D16 -> 275520.94 | E15: =(-PMT($K$8,50,D15,0,0)) -> 9474.044014 | F15: =(MACRO_INPUT!D27-MACRO_INPUT!D57)/50 -> 12789.68246 | G15: 3/ | H15: =ROUND(+E15/F15,2) -> 0.74
A16: Conveyance Pumping | B16: Dos Amigos Pumping Plant, PUE only | C16: - | D16: =MACRO_INPUT!K31+MACRO_INPUT!L31 -> 541234.934 | E16: 18610.86706 | F16: =MACRO_INPUT!D27/50 -> 12957.30246 | G16: - | H16: 1.44
A17: Conveyance Pumping | B17: O'Neill P-Generator/Pumping Plant, Construction only | C17: - | D17: =MACRO_INPUT!J32-MACRO_INPUT!Q34-D18 -> 1611080.775 | E17: 55398.51226 | F17: =MACRO_INPUT!D29/50 -> 91007.32286 | G17: - | H17: 0.61
A18: Conveyance Pumping | B18: O'Neill P-Generator/Pumping Plant, PUE only | C18: - | D18: =MACRO_INPUT!K32+MACRO_INPUT!L32 -> 1687076.287 | E18: 58011.68868 | F18: =F17 -> 91007.32286 | G18: - | H18: 0.64
A19: Conveyance Pumping | B19: Jones Pumping Plant, Friant Kern/Madera, Construction only | C19: 2/ | D19: =Footnote!D16 -> 1468825.98 | E19: 50506.94869 | F19: =(MACRO_INPUT!D90+MACRO_INPUT!D102)/50 -> 50974.74286 | G19: 4/ | H19: 0.99
A20: Conveyance Pumping | B20: Jones Pumping Plant, Friant Kern/Madera, PUE only | C20: 2/ | D20: =Footnote!G16 -> 3592231.397 | E20: 123522.2207 | F20: =F19 -> 50974.74286 | G20: =+G19 -> 4/ | H20: 2.42
A21: Conveyance Pumping | B21: Jones Pumping Plant, All Other Contractors, Construction only | C21: 2/ | D21: =Footnote!D17-MACRO_INPUT!Q37 -> 2897901.04 | E21: 99647.02503 | F21: =MACRO_INPUT!D31/50 -> 99128.88 | G21: 1/ | H21: 1.01
A22: Conveyance Pumping | B22: Jones Pumping Plant, All Other Contractors, PUE only | C22: 2/ | D22: =Footnote!G17 -> 7131333.93 | E22: 245217.556 | F22: =F21 -> 99128.88 | G22: =+G21 -> 1/ | H22: 2.47
A23: Total | B23: Conveyance Pumping | C23: - | D23: =SUM(D15:D22) -> 19205205.28 | E23: =SUM(E15:E22) -> 660388.8625 | F23: - | G23: - | H23: -
A24: Direct Pumping | B24: Bella Vista WD (Wintu PP) | C24: - | D24: =MACRO_INPUT!J39-MACRO_INPUT!Q43 -> 841672.5775 | E24: =(-PMT($K$8,50,D24,0,0)) -> 28941.69512 | F24: =MACRO_INPUT!D51/50 -> 3526.711429 | G24: - | H24: =ROUND(+E24/F24,2) -> 8.21
A25: Direct Pumping | B25: Colusa County WD Relift PP | C25: - | D25: =MACRO_INPUT!J40-MACRO_INPUT!Q44 -> 36408.49257 | E25: 1251.939911 | F25: =MACRO_INPUT!D154/50 -> 101.4514286 | G25: - | H25: 12.34
A26: Direct Pumping | B26: Contra Costa PP (Contra Costa WD) | C26: - | D26: =MACRO_INPUT!J41-MACRO_INPUT!Q45 -> 4974012.629 | E26: 171036.0547 | F26: =MACRO_INPUT!D47/50 -> 101489.5686 | G26: - | H26: 1.69
A27: Direct Pumping | B27: Kanawha WD | C27: - | D27: =MACRO_INPUT!J42-MACRO_INPUT!Q46 -> 1558.779776 | E27: 53.60009371 | F27: =MACRO_INPUT!D155/50 -> 9.774285714 | G27: - | H27: 5.48
A28: Direct Pumping | B28: Pleasant Valley PP (City of Coalinga) | C28: - | D28: =MACRO_INPUT!J44-MACRO_INPUT!Q47 -> 202557.95 | E28: 6965.143679 | F28: =MACRO_INPUT!D125/50 -> 5522.051429 | G28: - | H28: 1.26
A29: Direct Pumping | B29: Pleasant Valley WD Canalside Relift PP | C29: - | D29: =MACRO_INPUT!J43-MACRO_INPUT!Q48 -> 49429.81448 | E29: 1699.690187 | F29: =F28 -> 5522.051429 | G29: - | H29: 0.31
A30: Direct Pumping | B30: San Benito County WD, Gianelli, WR PGP | C30: - | D30: =MACRO_INPUT!J47-MACRO_INPUT!Q51 -> 363795.9546 | E30: 12509.46257 | F30: - | G30: - | H30: -
A31: Direct Pumping | B31: San Benito County WD, Pacheco PP | C31: - | D31: =MACRO_INPUT!J46-MACRO_INPUT!Q50 -> 224076.6822 | E31: 7705.085319 | F31: - | G31: - | H31: -
A32: Total | B32: San Benito County WD | C32: - | D32: =+D30+D31 -> 587872.6369 | E32: =+E30+E31 -> 20214.54789 | F32: =MACRO_INPUT!D118/50 -> 3519.305714 | G32: - | H32: =ROUND(+E32/F32,2) -> 5.74
A33: Direct Pumping | B33: San Luis WD Canalside Relift PP | C33: - | D33: =MACRO_INPUT!J48-MACRO_INPUT!Q54 -> 73891.36987 | E33: =(-PMT($K$8,50,D33,0,0)) -> 2540.823541 | F33: =MACRO_INPUT!D135/50 -> 703.4085714 | G33: - | H33: =ROUND(+E33/F33,2) -> 3.61
A34: Direct Pumping | B34: Santa Clara Valley WD, Coyote PP | C34: - | D34: =MACRO_INPUT!J50-MACRO_INPUT!Q56 -> 1356563.247 | E34: 46646.69011 | F34: - | G34: - | H34: -
A35: Direct Pumping | B35: Santa Clara Valley WD, Gianelli, WR PGP | C35: - | D35: =MACRO_INPUT!J52-MACRO_INPUT!Q58 -> 7865554.342 | E35: 270464.4083 | F35: - | G35: - | H35: -
A36: Direct Pumping | B36: Santa Clara Valley WD, Pacheco PP | C36: - | D36: =MACRO_INPUT!J51-MACRO_INPUT!Q57 -> 4713216.438 | E36: 162068.3349 | F36: - | G36: - | H36: -
A37: Total | B37: Santa Clara WD | C37: - | D37: =+D34+D35+D36 -> 13935334.03 | E37: =SUM(E34:E36) -> 479179.4334 | F37: =MACRO_INPUT!D119/50 -> 74024.88 | G37: - | H37: =ROUND(+E37/F37,2) -> 6.47
A38: Direct Pumping | B38: Shasta Pumping Plant (City of Shasta Lake) | C38: - | D38: =MACRO_INPUT!J53-MACRO_INPUT!Q62 -> 569188.0861 | E38: =(-PMT($K$8,50,D38,0,0)) -> 19572.06222 | F38: =MACRO_INPUT!D161/50 -> 1906.534286 | G38: - | H38: =ROUND(+E38/F38,2) -> 10.27
A39: Direct Pumping | B39: State Delta PP (Cross Valley Canal) | C39: - | D39: =MACRO_INPUT!J54-MACRO_INPUT!Q63 -> 15079.58 | E39: 518.5253962 | F39: =MACRO_INPUT!D57/50 -> 167.62 | G39: - | H39: =ROUND(+E39/F39,2) -> 3.09
A40: Direct Pumping | B40: Westlands WD Relifts | C40: - | D40: =MACRO_INPUT!J55-MACRO_INPUT!Q64 -> 783611.2842 | E40: 26945.2035 | F40: =MACRO_INPUT!D128/50 -> 3988.68 | G40: - | H40: =ROUND(+E40/F40,2) -> 6.76
A41: Total | B41: Direct Pumping | C41: - | D41: =SUM(D24:D29)+D32+D37+SUM(D38:D40)+D33 -> 22070617.23 | E41: =SUM(E24:E29)+E32+E37+SUM(E38:E40)+E33 -> 758918.7196 | F41: - | G41: - | H41: -
A42: Subtotal | B42: - | C42: - | D42: =+D11+D14+D23+D41 -> 116956441.8 | E42: =+E11+E14+E23+E41 -> 4021656.13 | F42: - | G42: - | H42: -
A43: Other Costs | B43: Deferred Interest Capitalized | C43: - | D43: =MACRO_INPUT!R72 -> 21277763 | E43: =(-PMT($K$8,50,D43,0,0)) -> 731655.689 | F43: - | G43: - | H43: -
A44: Other Costs | B44: Programmatic EIS Capitalized | C44: - | D44: =MACRO_INPUT!R73 -> 1591067.959 | E44: 54710.35294 | F44: - | G44: - | H44: -
A45: Other Costs | B45: All others | C45: - | D45: =MACRO_INPUT!R74 -> 7378781.395 | E45: 253726.2674 | F45: - | G45: - | H45: -
A46: Total | B46: Other Costs | C46: - | D46: =SUM(D43:D45) -> 30247612.35 | E46: =SUM(E43:E45) -> 1040092.309 | F46: =MACRO_INPUT!D165/50 -> 354626.9904 | G46: - | H46: =ROUND(+E46/F46,2) -> 2.93
A47: Grand Total | B47: - | C47: - | D47: =+D42+D46 -> 147204054.2 | E47: =+E42+E46 -> 5061748.439 | F47: - | G47: - | H47: -
D49: Variance | E49: =(-PMT(K8,50,D47,0,0))-E47 -> 0

Sheet Footnote
A1: =INFORMATION!A1 -> 2023 Cost of Service Additional Service Water Rates Sch TR-1.Z25.xlsm
A2: =INFORMATION!A2 -> 01/03/2023
A3: =INFORMATION!A3 -> CENTRAL VALLEY PROJECT
A4: =INFORMATION!A4 -> SCHEDULE OF WATER RATES FOR ADDITIONAL CVP SERVICES WHEN TRANSFERRING
A5: =INFORMATION!A5 -> CVP WATER TO CVP M&I WATER CONTRACTORS
A6: =INFORMATION!A6 -> 2023 SPECIAL WATER RATES
A8: Footnotes:
A9: 1/
A10: Total Conveyance Pumping for Jones Pumping Plant less Delta Mendota Exchange
A12: 2/
A13: Suballocation of Jones Pumping Plant costs:
A15: Facility/Contractor Ref | B15: Historical & Projected Deliveries (1981-2030) (Sch A-7) | C15: Ratio | D15: M&I Construction Costs at 9/30/2021 | E15: Project Use Energy BOR | F15: Project Use Energy DOE | G15: Project Use Energy Total
A16: Jones Pumping Plant: Delta-Mendota Exchange | B16: =+MACRO_INPUT!D32-MACRO_INPUT!D31 -> 2496684.902 | C16: =ROUND(B16/B18,9) -> 0.334984801 | D16: =+SuballocationOfJonesPumpingPlantCosts[[#This Row],[Ratio]]*JonesPumpingPlantConveyancePumping[Construction Allocation] -> 1468825.98 | E16: =+SuballocationOfJonesPumpingPlantCosts[[#This Row],[Ratio]]*JonesPumpingPlantConveyancePumping[Less: BOR PUE (M&I Sch A-5)] -> 1821434.833 | F16: =+SuballocationOfJonesPumpingPlantCosts[[#This Row],[Ratio]]*JonesPumpingPlantConveyancePumping[Less: DOE PUE (M&I Sch A-5)] -> 1770796.564 | G16: =+E16+F16 -> 3592231.397
A17: Jones Pumping Plant: All Other Contractors | B17: =+MACRO_INPUT!D31 -> 4956444 | C17: =ROUND(B17/B18,9) -> 0.665015199 | D17: =+SuballocationOfJonesPumpingPlantCosts[[#This Row],[Ratio]]*JonesPumpingPlantConveyancePumping[Construction Allocation] -> 2915928.12 | E17: =+SuballocationOfJonesPumpingPlantCosts[[#This Row],[Ratio]]*JonesPumpingPlantConveyancePumping[Less: BOR PUE (M&I Sch A-5)] -> 3615930.765 | F17: =+SuballocationOfJonesPumpingPlantCosts[[#This Row],[Ratio]]*JonesPumpingPlantConveyancePumping[Less: DOE PUE (M&I Sch A-5)] -> 3515403.165 | G17: =+E17+F17 -> 7131333.93
A18: Total a/ | B18: =SUM(B16:B17) -> 7453128.902 | C18: 1 | D18: 4384754.1 | E18: 5437365.598 | F18: 5286199.73 | G18: 10723565.33
A20: a/ Jones Pumping Plant - Conveyance Pumping:
A22: Total Construction (M&I Sch A-5) | B22: Less: BOR PUE (M&I Sch A-5) | C22: Less: DOE PUE (M&I Sch A-5) | D22: Construction Allocation
A23: =+MACRO_INPUT!J33 -> 15108319.43 | B23: =+MACRO_INPUT!K33 -> 5437365.598 | C23: =+MACRO_INPUT!L33 -> 5286199.73 | D23: =A23-B23-C23 -> 4384754.1
A25: 3/
A26: Cross Valley Canal contractors are charged for PUE construction component only. Therefore their deliveries are not included in determining the "Construction only" rate.
A28: 4/
A29: Includes Friant Dam and Friant-Kern Canal
